fUSD/lending_fUSD_20250611
["ID","MTS","AMOUNT","RATE_DAILY","PERIOD"]
[365352217,1749616236412,-490.0,0.00016438,2]
[365352218,1749616236422,-490.0,0.00016438,2]
[365352219,1749616236618,-480.0,0.00016438,2]
[365352220,1749616236627,-478.52464007,0.00016438,2]
[365352221,1749616236639,-11.47535993,0.00016438,2]
[365352222,1749616236649,-490.0,0.00016438,2]
[365352223,1749616236658,-490.0,0.00016438,2]
[365352224,1749616236667,-480.0,0.00016438,2]
[365352225,1749616236677,-490.0,0.00016438,2]
[365352226,1749616236686,-480.0,0.00016438,2]
[365352227,1749616236695,-490.0,0.00016438,2]
[365352228,1749616236704,-490.0,0.00016438,2]
[365352229,1749616236713,-2350.13182015,0.00016438,2]
[365352230,1749616236725,-115.70817985,0.00016438,2]
[365352231,1749616236734,-480.0,0.00016438,2]
[365352232,1749616236743,-490.0,0.00016438,2]
[365352233,1749616236753,-480.0,0.00016438,2]
[365352234,1749616236762,-337.34660325,0.00016438,2]
[365352235,1749616236771,-480.0,0.00016438,2]
[365352236,1749616236780,-490.0,0.00016438,2]
[365352237,1749616236789,-490.0,0.00016438,2]
[365352238,1749616236798,-480.0,0.00016438,2]
[365352239,1749616236808,-490.0,0.00016438,2]
[365352240,1749616236817,-490.0,0.00016438,2]
[365352241,1749616236827,-480.0,0.00016438,2]
[365352242,1749616236836,-490.0,0.00016438,2]
[365352243,1749616236845,-490.0,0.00016438,2]
[365352244,1749616236854,-490.0,0.00016438,2]
[365352245,1749616236863,-574.44,0.00016438,2]
[365352246,1749616236873,-490.0,0.00016438,2]
[365352247,1749616236882,-490.0,0.00016438,2]
[365352248,1749616236891,-460.0,0.00016438,2]
[365352249,1749616236900,-490.0,0.00016438,2]
[365352250,1749616236909,-490.0,0.00016438,2]
[365352251,1749616236919,-490.0,0.00016438,2]
[365352252,1749616236928,-490.0,0.00016438,2]
[365352253,1749616236937,-480.0,0.00016438,2]
[365352254,1749616236946,-490.0,0.00016438,2]
[365352255,1749616236956,-637.7,0.00016438,2]
[365352256,1749616236966,-490.0,0.00016438,2]
[365352257,1749616236975,-878.62,0.00016438,2]
[365352258,1749616236984,-480.0,0.00016438,2]
[365352259,1749616236993,-480.0,0.00016438,2]
[365352260,1749616237002,-490.0,0.00016438,2]
[365352261,1749616237011,-480.0,0.00016438,2]
[365352262,1749616237021,-480.0,0.00016438,2]
[365352263,1749616237031,-490.0,0.00016438,2]
[365352264,1749616237040,-570.42578427,0.00016438,2]
[365352265,1749616237050,-480.0,0.00016438,2]
[365352266,1749616237059,-490.0,0.00016438,2]
[365352267,1749616237069,-490.0,0.00016438,2]
[365352268,1749616237078,-1000.0,0.00016438,2]
[365352269,1749616237087,-480.0,0.00016438,2]
[365352270,1749616237096,-480.0,0.00016438,2]
[365352271,1749616237106,-480.0,0.00016438,2]
[365352272,1749616237115,-480.0,0.00016438,2]
[365352273,1749616237124,-480.0,0.00016438,2]
[365352274,1749616237133,-490.0,0.00016438,2]
[365352275,1749616237143,-480.0,0.00016438,2]
[365352276,1749616237151,-460.0,0.00016438,2]
[365352277,1749616237161,-151.0,0.00016483,2]
[365352278,1749616237170,-181.04934,0.00016502,2]
[365352279,1749616237179,-500.0,0.00016601,2]
[365352280,1749616237189,-257.14,0.00016602,2]
[365352281,1749616237198,-490.0,0.00016602,2]
[365352282,1749616237207,-430.0,0.00016602,2]
[365352283,1749616237217,-430.0,0.00016602,2]
[365352284,1749616237227,-162.16696304,0.00016602,2]
[365352285,1749616237236,-450.0,0.00016602,2]
[365352286,1749616237245,-450.0,0.00016602,2]
[365352287,1749616237254,-450.0,0.00016602,2]
[365352288,1749616237264,-387.1431715,0.00016602,2]
[365352289,1749616237273,-430.0,0.00016602,2]
[365352290,1749616237283,-490.0,0.00016602,2]
[365352291,1749616237292,-430.0,0.00016602,2]
[365352292,1749616237301,-490.0,0.00016602,2]
[365352293,1749616237311,-490.0,0.00016602,2]
[365352294,1749616237320,-430.0,0.00016602,2]
[365352295,1749616237329,-430.0,0.00016602,2]
[365352296,1749616237339,-234.64,0.00016602,2]
[365352297,1749616237348,-490.0,0.00016602,2]
[365352298,1749616237357,-430.0,0.00016602,2]
[365352299,1749616237367,-168.93,0.00016602,2]
[365352300,1749616237376,-627.2,0.00016602,2]
[365352301,1749616237386,-450.0,0.00016602,2]
[365352302,1749616237399,-190.76,0.00016602,2]
[365352303,1749616237409,-470.0,0.00016602,2]
[365352304,1749616237419,-367.34,0.00016602,2]
[365352305,1749616237428,-327.49,0.00016602,2]
[365352306,1749616237438,-378.47,0.00016602,2]
[365352307,1749616237448,-321.72,0.00016602,2]
[365352308,1749616237457,-302.32,0.00016602,2]
[365352309,1749616237467,-166.43,0.00016602,2]
[365352310,1749616237478,-554.5,0.00016602,2]
[365352311,1749616237488,-357.84,0.00016602,2]
[365352312,1749616237498,-490.0,0.00016602,2]
[365352313,1749616237507,-490.0,0.00016602,2]
[365352314,1749616237516,-490.0,0.00016602,2]
[365352315,1749616237526,-633.56,0.00016602,2]
[365352316,1749616237535,-490.0,0.00016602,2]
[365352317,1749616237545,-424.52,0.00016602,2]
[365352318,1749616237554,-451.82,0.00016602,2]
[365352319,1749616237563,-555.49,0.00016602,2]
[365352320,1749616237572,-490.0,0.00016602,2]
[365352321,1749616237582,-490.0,0.00016602,2]
[365352322,1749616237592,-490.0,0.00016602,2]
[365352323,1749616237600,-272.6,0.00016602,2]
[365352324,1749616237610,-490.0,0.00016602,2]
[365352325,1749616237619,-490.0,0.00016602,2]
[365352326,1749616237628,-380.77,0.00016602,2]
[365352327,1749616237638,-490.0,0.00016602,2]
[365352328,1749616237647,-201.54,0.00016602,2]
[365352329,1749616237655,-450.0,0.00016602,2]
[365352330,1749616237664,-450.0,0.00016602,2]
[365352331,1749616237674,-264.54851745,0.00016602,2]
[365352332,1749616237683,-490.0,0.00016602,2]
[365352333,1749616237692,-490.0,0.00016602,2]
[365352334,1749616237701,-490.0,0.00016602,2]
[365352335,1749616237710,-490.0,0.00016602,2]
[365352336,1749616237720,-490.0,0.00016602,2]
[365352337,1749616237729,-490.0,0.00016602,2]
[365352338,1749616237739,-534.05,0.00016602,2]
[365352339,1749616237748,-490.0,0.00016602,2]
[365352340,1749616237757,-175.21,0.00016602,2]
[365352341,1749616237767,-490.0,0.00016602,2]
[365352342,1749616237776,-565.49,0.00016602,2]
[365352343,1749616237784,-495.27,0.00016602,2]
[365352344,1749616237795,-490.0,0.00016602,2]
[365352345,1749616237804,-368.56,0.00016602,2]
[365352346,1749616237815,-490.0,0.00016602,2]
[365352347,1749616237824,-490.0,0.00016602,2]
[365352348,1749616237833,-490.0,0.00016602,2]
[365352349,1749616237843,-637.38,0.00016602,2]
[365352350,1749616237852,-490.0,0.00016602,2]
[365352351,1749616237861,-497.19,0.00016602,2]
[365352352,1749616237871,-490.0,0.00016602,2]
[365352353,1749616237880,-490.0,0.00016602,2]
[365352354,1749616237889,-490.0,0.00016602,2]
[365352355,1749616237898,-490.0,0.00016602,2]
[365352356,1749616237907,-490.0,0.00016602,2]
[365352357,1749616237917,-500.0,0.00016602,2]
[365352358,1749616237926,-490.0,0.00016602,2]
[365352359,1749616237935,-490.0,0.00016602,2]
[365352360,1749616237944,-450.0,0.00016602,2]
[365352361,1749616237953,-194.46,0.00016602,2]
[365352362,1749616237963,-490.0,0.00016602,2]
[365352363,1749616237973,-308.45,0.00016602,2]
[365352364,1749616237982,-490.0,0.00016602,2]
[365352365,1749616237991,-490.0,0.00016602,2]
[365352366,1749616238000,-490.0,0.00016602,2]
[365352367,1749616238010,-490.0,0.00016602,2]
[365352368,1749616238019,-490.0,0.00016602,2]
[365352369,1749616238028,-490.0,0.00016602,2]
[365352370,1749616238038,-490.0,0.00016602,2]
[365352371,1749616238048,-2465.84,0.00016602,2]
[365352372,1749616238057,-334.33,0.00016602,2]
[365352373,1749616238067,-490.0,0.00016602,2]
[365352374,1749616238076,-490.0,0.00016602,2]
[365352375,1749616238085,-226.45737624,0.00016602,2]
[365352376,1749616238094,-490.0,0.00016602,2]
[365352377,1749616238103,-490.0,0.00016602,2]
[365352378,1749616238112,-209.23,0.00016602,2]
[365352379,1749616238121,-490.0,0.00016602,2]
[365352380,1749616238131,-490.0,0.00016602,2]
[365352381,1749616238141,-235.93678246,0.00016602,2]
[365352382,1749616238150,-337.44,0.00016602,2]
[365352383,1749616238159,-490.0,0.00016602,2]
[365352385,1749616238168,-490.0,0.00016602,2]
[365352387,1749616238177,-226.03,0.00016602,2]
[365352389,1749616238196,-637.7,0.00016602,2]
[365352391,1749616238216,-271.98,0.00016602,2]
[365352393,1749616238236,-878.62,0.00016602,2]
[365352395,1749616238245,-490.0,0.00016602,2]
[365352397,1749616238254,-490.0,0.00016602,2]
[365352399,1749616238263,-490.0,0.00016602,2]
[365352400,1749616238274,-490.0,0.00016602,2]
[365352402,1749616238284,-1000.0,0.00016602,2]
[365352405,1749616238295,-490.0,0.00016602,2]
[365352406,1749616238304,-165.26,0.0001666,2]
[365352408,1749616238315,-1534.11677318,0.00016734,2]
[365352411,1749616238325,-326.25293818,0.00016766,2]
[365352413,1749616238335,-160.26281345,0.00016766,2]
[365352415,1749616238344,-209.94919681,0.00016766,2]
[365352416,1749616238353,-270.63143828,0.00016766,2]
[365352418,1749616238362,-319.4,0.00016767,2]
[365352420,1749616238372,-499.47,0.00016767,2]
[365352422,1749616238381,-247.43,0.00016767,2]
[365352424,1749616238392,-387.27,0.00016767,2]
[365352426,1749616238402,-516.02,0.00016767,2]
[365352428,1749616238411,-446.29,0.00016767,2]
[365352430,1749616238420,-490.0,0.00016767,2]
[365352432,1749616238430,-603.49,0.00016767,2]
[365352434,1749616238439,-451.38,0.00016767,2]
[365352436,1749616238448,-385.0,0.00016767,2]
[365352438,1749616238458,-595.37060157,0.00016767,2]
[365352440,1749616238467,-150.30722798,0.00016767,2]
[365352442,1749616238477,-228.65,0.00016767,2]
[365352444,1749616238487,-359.46444842,0.00016767,2]
[365352446,1749616238496,-490.0,0.00016767,2]
[365352449,1749616238506,-490.0,0.00016767,2]
[365352451,1749616238515,-236.87,0.00016767,2]
[365352452,1749616238524,-490.0,0.00016767,2]
[365352454,1749616238533,-490.0,0.00016767,2]
[365352456,1749616238542,-490.0,0.00016767,2]
[365352458,1749616238551,-490.0,0.00016767,2]
[365352460,1749616238561,-534.05,0.00016767,2]
[365352463,1749616238571,-490.0,0.00016767,2]
[365352464,1749616238580,-490.0,0.00016767,2]
[365352466,1749616238589,-495.27,0.00016767,2]
[365352468,1749616238599,-490.0,0.00016767,2]
[365352470,1749616238608,-490.0,0.00016767,2]
[365352472,1749616238617,-490.0,0.00016767,2]
[365352474,1749616238627,-469.07,0.00016767,2]
[365352476,1749616238636,-490.0,0.00016767,2]
[365352478,1749616238645,-464.59,0.00016767,2]
[365352480,1749616238654,-490.0,0.00016767,2]
[365352482,1749616238663,-490.0,0.00016767,2]
[365352484,1749616238672,-490.0,0.00016767,2]
[365352486,1749616238681,-500.0,0.00016767,2]
[365352488,1749616238690,-490.0,0.00016767,2]
[365352490,1749616238700,-490.0,0.00016767,2]
[365352492,1749616238709,-490.0,0.00016767,2]
[365352494,1749616238718,-490.0,0.00016767,2]
[365352496,1749616238727,-443.39,0.00016767,2]
[365352498,1749616238736,-436.4,0.00016767,2]
[365352500,1749616238746,-312.26,0.00016767,2]
[365352502,1749616238755,-490.0,0.00016767,2]
[365352504,1749616238764,-490.0,0.00016767,2]
[365352506,1749616238773,-490.0,0.00016767,2]
[365352508,1749616238782,-2465.84,0.00016767,2]
[365352510,1749616238792,-490.0,0.00016767,2]
[365352512,1749616238801,-490.0,0.00016767,2]
[365352513,1749616238811,-189.72740352,0.00016767,2]
[365352515,1749616238820,-490.0,0.00016767,2]
[365352517,1749616238829,-450.0,0.00016767,2]
[365352519,1749616238838,-450.0,0.00016767,2]
[365352521,1749616238847,-158.32,0.00016767,2]
[365352523,1749616238857,-460.74000001,0.00016767,2]
[365352525,1749616238867,-637.7,0.00016767,2]
[365352527,1749616238877,-878.62,0.00016767,2]
[365352529,1749616238886,-490.0,0.00016767,2]
[365352531,1749616238895,-490.0,0.00016767,2]
[365352533,1749616238904,-249.05,0.00016767,2]
[365352535,1749616238913,-1000.0,0.00016767,2]
[365352537,1749616238922,-490.0,0.00016767,2]
[365352539,1749616238931,-490.0,0.00016767,2]
[365352541,1749616238940,-319.66,0.00016887,2]
[365352543,1749616238950,-205.07854883,0.000169,2]
[365352545,1749616238959,-362.19,0.00016931,2]
[365352547,1749616238968,-490.0,0.00016931,2]
[365352548,1749616238977,-490.0,0.00016931,2]
[365352550,1749616238986,-490.0,0.00016931,2]
[365352552,1749616238995,-478.51550433,0.00016931,2]
[365352554,1749616239005,-490.0,0.00016931,2]
[365352556,1749616239014,-490.0,0.00016931,2]
[365352558,1749616239024,-84.88485543,0.00016931,2]
[365352561,1749616239039,-449.16514457,0.00016931,2]
[365352563,1749616239049,-490.0,0.00016931,2]
[365352565,1749616239058,-490.0,0.00016931,2]
[365352567,1749616239067,-495.27,0.00016931,2]
[365352569,1749616239077,-490.0,0.00016931,2]
[365352571,1749616239086,-35.82058505,0.00016931,2]
[365352573,1749616239098,-454.17941495,0.00016931,2]
[365352575,1749616239108,-490.0,0.00016931,2]
[365352577,1749616239117,-160.46051759,0.00016931,2]
[365352579,1749616239128,-329.53948241,0.00016931,2]
[365352581,1749616239138,-490.0,0.00016931,2]
[365352583,1749616239146,-490.0,0.00016931,2]
[365352585,1749616239155,-490.0,0.00016931,2]
[365352587,1749616239164,-500.0,0.00016931,2]
[365352589,1749616239173,-490.0,0.00016931,2]
[365352591,1749616239182,-490.0,0.00016931,2]
[365352593,1749616239191,-490.0,0.00016931,2]
[365352595,1749616239200,-490.0,0.00016931,2]
[365352597,1749616239210,-480.0,0.00016931,2]
[365352599,1749616239219,-490.0,0.00016931,2]
[365352600,1749616239228,-499.58,0.00016931,2]
[365352602,1749616239237,-2465.84,0.00016931,2]
[365352604,1749616239246,-490.0,0.00016931,2]
[365352606,1749616239256,-286.50904563,0.00016931,2]
[365352609,1749616239267,-188.27095437,0.00016931,2]
[365352610,1749616239275,-268.27765346,0.00016931,2]
[365352613,1749616239287,-221.72234654,0.00016931,2]
[365352615,1749616239297,-375.80785988,0.00016931,2]
[365352636,1749616239486,-261.89214012,0.00016931,2]
[365352637,1749616239495,-878.62,0.00016931,2]
[365352639,1749616239504,-490.0,0.00016931,2]
[365352641,1749616239513,-490.0,0.00016931,2]
[365352643,1749616239522,-637.54,0.00016931,2]
[365352644,1749616239531,-490.0,0.00016931,2]
[365352645,1749616239540,-490.0,0.00016931,2]
[365352646,1749616239550,-833.29909032,0.00017063,2]
[365352647,1749616239559,-490.0,0.00017095,2]
[365352648,1749616239568,-490.0,0.00017095,2]
[365352649,1749616239577,-490.0,0.00017095,2]
[365352650,1749616239586,-534.05,0.00017095,2]
[365352651,1749616239595,-490.0,0.00017095,2]
[365352652,1749616239604,-490.0,0.00017095,2]
[365352653,1749616239613,-495.27,0.00017095,2]
[365352654,1749616239622,-360.05,0.00017095,2]
[365352655,1749616239631,-601.71,0.00017095,2]
[365352656,1749616239641,-337.06,0.00017095,2]
[365352657,1749616239650,-490.0,0.00017095,2]
[365352658,1749616239659,-490.0,0.00017095,2]
[365352660,1749616239668,-490.0,0.00017095,2]
[365352662,1749616239678,-490.0,0.00017095,2]
[365352664,1749616239687,-500.0,0.00017095,2]
[365352666,1749616239696,-353.39,0.00017095,2]
[365352668,1749616239706,-490.0,0.00017095,2]
[365352670,1749616239715,-490.0,0.00017095,2]
[365352672,1749616239724,-490.0,0.00017095,2]
[365352674,1749616239732,-490.0,0.00017095,2]
[365352676,1749616239741,-2465.84,0.00017095,2]
[365352678,1749616239750,-490.0,0.00017095,2]
[365352680,1749616239759,-490.0,0.00017095,2]
[365352682,1749616239768,-637.7,0.00017095,2]
[365352684,1749616239778,-878.62,0.00017095,2]
[365352686,1749616239787,-490.0,0.00017095,2]
[365352688,1749616239795,-490.0,0.00017095,2]
[365352690,1749616239804,-490.0,0.00017095,2]
[365352692,1749616239814,-490.0,0.00017095,2]
[365352694,1749616239823,-203.0,0.00017117,2]
[365352696,1749616239832,-1534.11677318,0.0001713,2]
[365352697,1749616239841,-904.88,0.00017231,2]
[365352699,1749616239850,-1577.74,0.00017245,2]
[365352701,1749616239860,-490.0,0.0001726,2]
[365352703,1749616239868,-490.0,0.0001726,2]
[365352705,1749616239878,-490.0,0.0001726,2]
[365352707,1749616239887,-534.05,0.0001726,2]
[365352709,1749616239896,-490.0,0.0001726,2]
[365352711,1749616239905,-490.0,0.0001726,2]
[365352713,1749616239914,-495.27,0.0001726,2]
[365352715,1749616239923,-490.0,0.0001726,2]
[365352717,1749616239932,-490.0,0.0001726,2]
[365352719,1749616239940,-490.0,0.0001726,2]
[365352721,1749616239949,-443.45,0.0001726,2]
[365352723,1749616239958,-500.0,0.0001726,2]
[365352725,1749616239968,-258.25,0.0001726,2]
[365352727,1749616239977,-490.0,0.0001726,2]
[365352729,1749616239986,-490.0,0.0001726,2]
[365352731,1749616239995,-490.0,0.0001726,2]
[365352733,1749616240004,-2465.84,0.0001726,2]
[365352735,1749616240013,-490.0,0.0001726,2]
[365352737,1749616240021,-490.0,0.0001726,2]
[365352739,1749616240031,-637.7,0.0001726,2]
[365352741,1749616240040,-878.62,0.0001726,2]
[365352743,1749616240050,-490.0,0.0001726,2]
[365352745,1749616240060,-490.0,0.0001726,2]
[365352747,1749616240068,-490.0,0.0001726,2]
[365352749,1749616240078,-490.0,0.0001726,2]
[365352750,1749616240086,-205.07854877,0.000174,2]
[365352753,1749616240096,-467.29,0.00017424,2]
[365352754,1749616240105,-490.0,0.00017424,2]
[365352757,1749616240115,-490.0,0.00017424,2]
[365352759,1749616240124,-534.05,0.00017424,2]
[365352760,1749616240133,-490.0,0.00017424,2]
[365352762,1749616240142,-490.0,0.00017424,2]
[365352764,1749616240151,-495.27,0.00017424,2]
[365352766,1749616240160,-157.93412532,0.00017424,2]
[365352769,1749616240172,-332.06587468,0.00017424,2]
[365352771,1749616240181,-490.0,0.00017424,2]
[365352773,1749616240190,-2.69662273,0.00017424,2]
[365352777,1749616240219,-469.77152403,0.00017424,2]
[365352790,1749616240331,-107.03185324,0.00017424,2]
[365352792,1749616240341,-172.77778793,0.00017424,2]
[365352794,1749616240352,-327.22221207,0.00017424,2]
[365352796,1749616240362,-490.0,0.00017424,2]
[365352798,1749616240371,-490.0,0.00017424,2]
[365352800,1749616240380,-485.38292067,0.00017424,2]
[365352802,1749616240393,-4.61707933,0.00017424,2]
[365352804,1749616240402,-1154.02923512,0.00017424,2]
[365352823,1749616240579,-1311.81076488,0.00017424,2]
[365352826,1749616240588,-490.0,0.00017424,2]
[365352828,1749616240599,-490.0,0.00017424,2]
[365352830,1749616240609,-637.7,0.00017424,2]
[365352832,1749616240619,-878.62,0.00017424,2]
[365352834,1749616240629,-490.0,0.00017424,2]
[365352836,1749616240638,-490.0,0.00017424,2]
[365352838,1749616240648,-490.0,0.00017424,2]
[365352840,1749616240657,-490.0,0.00017424,2]
[365352842,1749616240666,-1534.11677318,0.00017525,2]
[365352844,1749616240675,-490.0,0.00017589,2]
[365352846,1749616240684,-490.0,0.00017589,2]
[365352848,1749616240693,-534.05,0.00017589,2]
[365352850,1749616240702,-284.16,0.00017589,2]
[365352852,1749616240711,-490.0,0.00017589,2]
[365352854,1749616240720,-495.27,0.00017589,2]
[365352856,1749616240730,-490.0,0.00017589,2]
[365352857,1749616240739,-490.0,0.00017589,2]
[365352860,1749616240748,-500.0,0.00017589,2]
[365352862,1749616240758,-490.0,0.00017589,2]
[365352864,1749616240767,-490.0,0.00017589,2]
[365352866,1749616240776,-490.0,0.00017589,2]
[365352868,1749616240786,-2465.84,0.00017589,2]
[365352870,1749616240795,-490.0,0.00017589,2]
[365352872,1749616240805,-490.0,0.00017589,2]
[365352874,1749616240814,-637.7,0.00017589,2]
[365352876,1749616240823,-878.62,0.00017589,2]
[365352878,1749616240832,-490.0,0.00017589,2]
[365352880,1749616240842,-490.0,0.00017589,2]
[365352882,1749616240851,-490.0,0.00017589,2]
[365352884,1749616240861,-490.0,0.00017589,2]
[365352886,1749616240870,-23900.0,0.0001769,2]
[365352888,1749616240879,-226.37,0.0001769,2]
[365352890,1749616240889,-166.1,0.00017753,2]
[365352892,1749616240899,-490.0,0.00017753,2]
[365352894,1749616240908,-534.05,0.00017753,2]
[365352896,1749616240918,-490.0,0.00017753,2]
[365352898,1749616240928,-495.27,0.00017753,2]
[365352900,1749616240937,-490.0,0.00017753,2]
[365352902,1749616240947,-490.0,0.00017753,2]
[365352904,1749616240956,-500.0,0.00017753,2]
[365352906,1749616240965,-490.0,0.00017753,2]
[365352908,1749616240974,-490.0,0.00017753,2]
[365352910,1749616240983,-490.0,0.00017753,2]
[365352912,1749616240992,-2465.84,0.00017753,2]
[365352914,1749616241001,-490.0,0.00017753,2]
[365352916,1749616241010,-490.0,0.00017753,2]
[365352918,1749616241020,-637.7,0.00017753,2]
[365352920,1749616241029,-878.62,0.00017753,2]
[365352922,1749616241038,-490.0,0.00017753,2]
[365352924,1749616241047,-636.31,0.00017753,2]
[365352926,1749616241056,-526.08,0.00017753,2]
[365352928,1749616241065,-490.0,0.00017753,2]
[365352930,1749616241075,-200.0,0.00017757,2]
[365352932,1749616241084,-1957.856,0.00017841,2]
[365352934,1749616241093,-151.0,0.00017841,2]
[365352936,1749616241102,-218.84488687,0.00017841,2]
[365352938,1749616241111,-512.57041528,0.00017841,2]
[365352940,1749616241120,-500.0,0.00017841,2]
[365352942,1749616241129,-500.0,0.00017841,2]
[365352944,1749616241139,-500.0,0.00017841,2]
[365352946,1749616241148,-500.0,0.00017841,2]
[365352947,1749616241157,-500.0,0.00017841,2]
[365352949,1749616241166,-500.0,0.00017841,2]
[365352951,1749616241175,-500.0,0.00017841,2]
[365352953,1749616241185,-300.0,0.00017841,2]
[365352955,1749616241194,-300.0,0.00017841,2]
[365352957,1749616241203,-326.02545035,0.00017841,2]
[365352960,1749616241213,-207.4,0.00017841,2]
[365352962,1749616241222,-1957.85600001,0.00017896,2]
[365352964,1749616241233,-930.0,0.000179,2]
[365352965,1749616241242,-205.07854877,0.000179,2]
[365352967,1749616241251,-170.23626065,0.000179,2]
[365352970,1749616241261,-490.0,0.00017917,2]
[365352972,1749616241271,-534.05,0.00017917,2]
[365352974,1749616241281,-490.0,0.00017917,2]
[365352976,1749616241290,-495.27,0.00017917,2]
[365352978,1749616241300,-490.0,0.00017917,2]
[365352980,1749616241310,-490.0,0.00017917,2]
[365352982,1749616241320,-500.0,0.00017917,2]
[365352984,1749616241329,-490.0,0.00017917,2]
[365352986,1749616241338,-316.4,0.00017917,2]
[365352988,1749616241347,-490.0,0.00017917,2]
[365352990,1749616241357,-2465.84,0.00017917,2]
[365352992,1749616241366,-490.0,0.00017917,2]
[365352994,1749616241375,-490.0,0.00017917,2]
[365352996,1749616241385,-637.7,0.00017917,2]
[365352998,1749616241397,-878.62,0.00017917,2]
[365353000,1749616241406,-490.0,0.00017917,2]
[365353001,1749616241415,-490.0,0.00017917,2]
[365353004,1749616241425,-1534.11677318,0.00017921,2]
[365353005,1749616241437,-600.0,0.0001799,4]
[365353008,1749616241446,-1013.0,0.00018,2]
[365353010,1749616241455,-1000.0,0.00018,2]
[365353012,1749616241465,-1000.0,0.00018,2]
[365353014,1749616241476,-4351.22963661,0.00018,2]
[365353016,1749616241485,-153.42,0.00018,2]
[365353018,1749616241495,-153.42,0.00018,2]
[365353020,1749616241504,-976.98962492,0.00018,2]
[365353022,1749616241513,-1000.0,0.00018037,2]
[365353023,1749616241522,-666.0,0.00018044,2]
[365353025,1749616241531,-500.0,0.00018081,2]
[365353028,1749616241541,-250.0,0.00018082,2]
[365353030,1749616241552,-490.0,0.00018082,2]
[365353032,1749616241562,-534.05,0.00018082,2]
[365353034,1749616241571,-490.0,0.00018082,2]
[365353035,1749616241580,-495.27,0.00018082,2]
[365353038,1749616241590,-490.0,0.00018082,2]
[365353040,1749616241599,-490.0,0.00018082,2]
[365353042,1749616241608,-500.0,0.00018082,2]
[365353044,1749616241617,-490.0,0.00018082,2]
[365353046,1749616241626,-490.0,0.00018082,2]
[365353048,1749616241636,-2465.84,0.00018082,2]
[365353050,1749616241645,-490.0,0.00018082,2]
[365353052,1749616241655,-490.0,0.00018082,2]
[365353054,1749616241663,-637.7,0.00018082,2]
[365353056,1749616241673,-878.62,0.00018082,2]
[365353057,1749616241682,-490.0,0.00018082,2]
[365353060,1749616241691,-490.0,0.00018082,2]
[365353062,1749616241700,-490.0,0.00018246,2]
[365353064,1749616241711,-534.05,0.00018246,2]
[365353065,1749616241722,-490.0,0.00018246,2]
[365353068,1749616241731,-495.27,0.00018246,2]
[365353070,1749616241741,-490.0,0.00018246,2]
[365353072,1749616241751,-490.0,0.00018246,2]
[365353074,1749616241760,-500.0,0.00018246,2]
[365353076,1749616241771,-44.3505262,0.00018246,2]
[365353146,1749616242497,-500.0,0.00016438,2]
[365353149,1749616242507,-445.6494738,0.00018246,2]